fUST/lending_fUST_20250602
["ID","MTS","AMOUNT","RATE_DAILY","PERIOD"]
[363634510,1748793632381,200.0,0.00024495,120]
[363634518,1748793751060,200.0,0.00023941,120]
[363634520,1748793811615,200.0,0.00023718,120]
[363634521,1748793867184,40985.0,0.00024,120]
[363634540,1748794048137,-247.47686066,0.00015783,2]
[363634541,1748794048158,-193.60604894,0.00015942,2]
[363634542,1748794048182,-218.08755634,0.00016337,2]
[363634543,1748794048204,-1152.0,0.0001643,2]
[363634544,1748794048226,-300.0,0.0001643,2]
[363634545,1748794048249,-300.0,0.0001643,2]
[363634546,1748794048273,-500.0,0.00016431,2]
[363634547,1748794048295,-258.11360058,0.00016431,2]
[363634548,1748794048316,-500.0,0.00016431,2]
[363634549,1748794048340,-500.0,0.00016431,2]
[363634550,1748794048364,-500.0,0.00016431,2]
[363634551,1748794048388,-500.0,0.00016431,2]
[363634552,1748794048413,-500.0,0.00016431,2]
[363634553,1748794048435,-500.0,0.00016431,2]
[363634554,1748794048460,-500.0,0.00016431,2]
[363634555,1748794048483,-472.90107927,0.00016431,2]
[363634556,1748794048508,-488.64986025,0.00016431,2]
[363634557,1748794051106,-11.35013975,0.00016431,2]
[363634558,1748794051129,-500.0,0.00016431,2]
[363634559,1748794051150,-462.89229932,0.00016431,2]
[363634560,1748794051173,-500.0,0.00016431,2]
[363634561,1748794051197,-500.0,0.00016431,2]
[363634562,1748794051219,-500.0,0.00016431,2]
[363634563,1748794051242,-500.0,0.00016431,2]
[363634564,1748794051267,-500.0,0.00016431,2]
[363634565,1748794051290,-500.0,0.00016431,2]
[363634566,1748794051313,-642.25964999,0.00016431,2]
[363634567,1748794051336,-500.0,0.00016431,2]
[363634568,1748794051359,-500.0,0.00016431,2]
[363634569,1748794051382,-500.0,0.00016431,2]
[363634570,1748794051406,-500.0,0.00016431,2]
[363634571,1748794051429,-500.0,0.00016431,2]
[363634572,1748794051453,-500.0,0.00016431,2]
[363634573,1748794051478,-500.0,0.00016431,2]
[363634574,1748794051503,-159.88731099,0.00016431,2]
[363634575,1748794051528,-500.0,0.00016431,2]
[363634576,1748794051550,-500.0,0.00016431,2]
[363634577,1748794051572,-49618.3826557,0.00016432,2]
[363634578,1748794051594,-160.0,0.00016437,2]
[363634579,1748794051617,-316.41932258,0.00016438,2]
[363634580,1748794051640,-430.0,0.00016438,2]
[363634581,1748794051663,-430.0,0.00016438,2]
[363634582,1748794051687,-430.0,0.00016438,2]
[363634583,1748794051708,-430.0,0.00016438,2]
[363634584,1748794051732,-430.0,0.00016438,2]
[363634585,1748794051755,-430.0,0.00016438,2]
[363634586,1748794051781,-430.0,0.00016438,2]
[363634587,1748794051803,-430.0,0.00016438,2]
[363634588,1748794051826,-430.0,0.00016438,2]
[363634589,1748794051852,-430.0,0.00016438,2]
[363634590,1748794051875,-430.0,0.00016438,2]
[363634591,1748794051897,-430.0,0.00016438,2]
[363634592,1748794051920,-430.0,0.00016438,2]
[363634593,1748794051947,-430.0,0.00016438,2]
[363634594,1748794051971,-430.0,0.00016438,2]
[363634595,1748794051992,-430.0,0.00016438,2]
[363634596,1748794052020,-430.0,0.00016438,2]
[363634597,1748794052046,-698.49,0.00016438,2]
[363634598,1748794052071,-611.27,0.00016438,2]
[363634599,1748794052094,-430.0,0.00016438,2]
[363634600,1748794052119,-194.43,0.00016438,2]
[363634601,1748794052141,-430.0,0.00016438,2]
[363634602,1748794052168,-430.0,0.00016438,2]
[363634603,1748794052194,-1059.07,0.00016438,2]
[363634604,1748794052222,-578.72,0.00016438,2]
[363634605,1748794052246,-453.68,0.00016438,2]
[363634606,1748794052273,-711.65,0.00016438,2]
[363634607,1748794052295,-224.34,0.00016438,2]
[363634608,1748794052318,-430.0,0.00016438,2]
[363634609,1748794052340,-430.0,0.00016438,2]
[363634610,1748794052363,-430.0,0.00016438,2]
[363634611,1748794052386,-734.16798524,0.00016673,2]
[363634612,1748794052488,-1492.83649871,0.00016673,2]
[363634613,1748794052509,-73.45045507,0.00016711,2]
[363634614,1748794053094,-283.62,0.00016438,2]
[363634615,1748794053119,-95.847,0.00016711,2]
[363634619,1748794159134,-340.6903235,0.0001578,2]
[363634620,1748794159157,-205.5825627,0.000163,2]
[363634621,1748794159180,-2003.6103702,0.000164,2]
[363634622,1748794186784,170.55,0.00023,120]
[363634643,1748794232958,-274.89955783,0.000164,2]
[363634645,1748794232973,-444.83681827,0.000164,2]
[363634648,1748794232991,-5323.6532537,0.000164,2]
[363634650,1748794233002,-300.0,0.00016437,2]
[363634652,1748794233011,-300.0,0.00016437,2]
[363634654,1748794233022,-430.0,0.00016438,2]
[363634656,1748794233033,-430.0,0.00016438,2]
[363634657,1748794233043,-430.0,0.00016438,2]
[363634658,1748794233054,-430.0,0.00016438,2]
[363634659,1748794233066,-430.0,0.00016438,2]
[363634660,1748794233076,-266.04,0.00016438,2]
[363634662,1748794233087,-430.0,0.00016438,2]
[363634664,1748794233097,-430.0,0.00016438,2]
[363634666,1748794233107,-430.0,0.00016438,2]
[363634668,1748794233118,-752.45,0.00016438,2]
[363634670,1748794233128,-430.0,0.00016438,2]
[363634671,1748794233139,-430.0,0.00016438,2]
[363634673,1748794233150,-430.0,0.00016438,2]
[363634675,1748794233164,-369.2,0.00016438,2]
[363634677,1748794233175,-430.0,0.00016438,2]
[363634679,1748794233186,-660.87,0.00016438,2]
[363634681,1748794233196,-1126.12,0.00016438,2]
[363634683,1748794233211,-430.0,0.00016438,2]
[363634685,1748794233222,-430.0,0.00016438,2]
[363634687,1748794233232,-430.0,0.00016438,2]
[363634689,1748794233243,-231.0,0.00016438,2]
[363634691,1748794233254,-430.0,0.00016438,2]
[363634693,1748794233264,-430.0,0.00016438,2]
[363634695,1748794233275,-260.70254493,0.00016711,2]
[363634697,1748794233285,-430.0,0.00016711,2]
[363634699,1748794233294,-430.0,0.00016711,2]
[363634701,1748794233304,-243.29616574,0.00016711,2]
[363634703,1748794233314,-430.0,0.00016711,2]
[363634705,1748794233325,-430.0,0.00016711,2]
[363634707,1748794233335,-330.22309341,0.00016711,2]
[363634709,1748794233345,-483.07380378,0.00016711,2]
[363634711,1748794233355,-430.0,0.00016711,2]
[363634713,1748794233365,-430.0,0.00016711,2]
[363634715,1748794233375,-430.0,0.00016711,2]
[363634717,1748794233386,-430.0,0.00016711,2]
[363634719,1748794233396,-430.0,0.00016711,2]
[363634721,1748794233407,-430.0,0.00016711,2]
[363634723,1748794233421,-430.0,0.00016711,2]
[363634725,1748794233433,-430.0,0.00016711,2]
[363634727,1748794233443,-430.0,0.00016711,2]
[363634729,1748794233455,-430.0,0.00016711,2]
[363634731,1748794233465,-1226.51,0.00016711,2]
[363634733,1748794233476,-430.0,0.00016711,2]
[363634735,1748794233487,-430.0,0.00016711,2]
[363634737,1748794233497,-430.0,0.00016711,2]
[363634739,1748794233508,-430.0,0.00016711,2]
[363634741,1748794233518,-1028.55,0.00016711,2]
[363634743,1748794233528,-453.91614142,0.00016711,2]
[363634745,1748794233538,-430.0,0.00016711,2]
[363634747,1748794233548,-430.0,0.00016711,2]
[363634749,1748794233559,-430.0,0.00016711,2]
[363634751,1748794233569,-430.0,0.00016711,2]
[363634753,1748794233579,-449.49,0.00016711,2]
[363634755,1748794233590,-430.0,0.00016711,2]
[363634757,1748794233602,-430.0,0.00016711,2]
[363634759,1748794233612,-500.0,0.00016711,2]
[363634761,1748794233622,-515.80662778,0.00016711,2]
[363634763,1748794233633,-239.987479,0.00016711,2]
[363634766,1748794233643,-430.0,0.00016712,2]
[363634769,1748794233655,-430.0,0.00016712,2]
[363634771,1748794233668,-430.0,0.00016712,2]
[363634773,1748794233679,-477.5557266,0.00016712,2]
[363634775,1748794233689,-430.0,0.00016712,2]
[363634777,1748794233700,-491.62943883,0.00016712,2]
[363634779,1748794233710,-538.56723499,0.00016712,2]
[363634781,1748794233721,-227.37290623,0.00016712,2]
[363634783,1748794233731,-430.0,0.00016712,2]
[363634785,1748794233741,-430.0,0.00016712,2]
[363634787,1748794233751,-578.72,0.00016712,2]
[363634789,1748794233761,-711.65,0.00016712,2]
[363634791,1748794233772,-430.0,0.00016712,2]
[363634793,1748794233782,-430.0,0.00016712,2]
[363634795,1748794233793,-430.0,0.00016712,2]
[363634797,1748794233803,-430.0,0.00016712,2]
[363634799,1748794233813,-430.0,0.00016712,2]
[363634801,1748794233822,-430.0,0.00016712,2]
[363634803,1748794233832,-430.0,0.00016712,2]
[363634805,1748794233842,-430.0,0.00016712,2]
[363634807,1748794233852,-430.0,0.00016712,2]
[363634809,1748794233862,-752.45,0.00016712,2]
[363634811,1748794233873,-430.0,0.00016712,2]
[363634813,1748794233884,-430.0,0.00016712,2]
[363634815,1748794233896,-660.87,0.00016712,2]
[363634817,1748794233906,-1126.12,0.00016712,2]
[363634819,1748794233921,-430.0,0.00016712,2]
[363634821,1748794233930,-430.0,0.00016712,2]
[363634823,1748794233942,-165.99033755,0.00016985,2]
[363634825,1748794233952,-430.0,0.00016985,2]
[363634827,1748794233965,-430.0,0.00016985,2]
[363634829,1748794233974,-430.0,0.00016985,2]
[363634831,1748794233984,-430.0,0.00016985,2]
[363634832,1748794233994,-430.0,0.00016985,2]
[363634833,1748794234004,-430.0,0.00016985,2]
[363634834,1748794234014,-430.0,0.00016985,2]
[363634835,1748794234024,-430.0,0.00016985,2]
[363634836,1748794234034,-430.0,0.00016985,2]
[363634837,1748794234045,-430.0,0.00016985,2]
[363634838,1748794234054,-430.0,0.00016985,2]
[363634839,1748794234064,-430.0,0.00016985,2]
[363634840,1748794234074,-1226.51,0.00016985,2]
[363634841,1748794234084,-430.0,0.00016985,2]
[363634842,1748794234094,-231.67524604,0.00016985,2]
[363634843,1748794234212,-198.32475396,0.00016985,2]
[363634844,1748794234223,-430.0,0.00016985,2]
[363634845,1748794234232,-371.19179378,0.00016985,2]
[363634887,1748794238320,-657.35820622,0.00016985,2]
[363634890,1748794238331,-430.0,0.00016985,2]
[363634892,1748794238341,-430.0,0.00016985,2]
[363634894,1748794238352,-430.0,0.00016985,2]
[363634896,1748794238362,-449.49,0.00016985,2]
[363634898,1748794238372,-430.0,0.00016985,2]
[363634900,1748794238381,-430.0,0.00016985,2]
[363634902,1748794238392,-430.0,0.00016986,2]
[363634904,1748794238401,-430.0,0.00016986,2]
[363634906,1748794238411,-430.0,0.00016986,2]
[363634908,1748794238425,-431.51226882,0.00016986,2]
[363634910,1748794238436,-578.72,0.00016986,2]
[363634912,1748794238445,-711.65,0.00016986,2]
[363634914,1748794238456,-430.0,0.00016986,2]
[363634916,1748794238466,-430.0,0.00016986,2]
[363634918,1748794238476,-430.0,0.00016986,2]
[363634920,1748794238486,-430.0,0.00016986,2]
[363634922,1748794238497,-387.92,0.00016986,2]
[363634924,1748794238506,-430.0,0.00016986,2]
[363634926,1748794238517,-430.0,0.00016986,2]
[363634928,1748794238526,-752.45,0.00016986,2]
[363634930,1748794238536,-430.0,0.00016986,2]
[363634932,1748794238547,-430.0,0.00016986,2]
[363634934,1748794238558,-660.87,0.00016986,2]
[363634936,1748794238570,-1126.12,0.00016986,2]
[363634938,1748794238580,-430.0,0.00016986,2]
[363634940,1748794238590,-430.0,0.00017259,2]
[363634942,1748794238600,-430.0,0.00017259,2]
[363634944,1748794238610,-430.0,0.00017259,2]
[363634946,1748794238621,-430.0,0.00017259,2]
[363634948,1748794238631,-430.0,0.00017259,2]
[363634950,1748794238641,-430.0,0.00017259,2]
[363634952,1748794238651,-430.0,0.00017259,2]
[363634954,1748794238661,-430.0,0.00017259,2]
[363634956,1748794238674,-1226.51,0.00017259,2]
[363634958,1748794238685,-430.0,0.00017259,2]
[363634960,1748794238695,-430.0,0.00017259,2]
[363634962,1748794238705,-430.0,0.00017259,2]
[363634964,1748794238715,-1028.55,0.00017259,2]
[363634966,1748794238726,-430.0,0.00017259,2]
[363634968,1748794238736,-430.0,0.00017259,2]
[363634970,1748794238746,-430.0,0.00017259,2]
[363634971,1748794238755,-449.49,0.00017259,2]
[363634974,1748794238765,-430.0,0.00017259,2]
[363634975,1748794238775,-430.0,0.00017259,2]
[363634977,1748794238786,-430.0,0.0001726,2]
[363634978,1748794238796,-430.0,0.0001726,2]
[363634979,1748794238806,-430.0,0.0001726,2]
[363634980,1748794238816,-578.72,0.0001726,2]
[363634981,1748794238826,-711.65,0.0001726,2]
[363634982,1748794238836,-430.0,0.0001726,2]
[363634983,1748794238846,-430.0,0.0001726,2]
[363634984,1748794238857,-430.0,0.0001726,2]
[363634985,1748794238867,-430.0,0.0001726,2]
[363634986,1748794238880,-752.45,0.0001726,2]
[363634987,1748794238891,-191.12576746,0.0001726,2]
[363634988,1748794238906,-430.0,0.0001726,2]
[363634989,1748794238917,-660.87,0.0001726,2]
[363634990,1748794238929,-1126.12,0.0001726,2]
[363634991,1748794238940,-430.0,0.0001726,2]
[363634992,1748794238954,-500.0,0.00017361,2]
[363634993,1748794238964,-500.0,0.00017361,2]
[363634994,1748794238976,-430.0,0.00017533,2]
[363634995,1748794238986,-430.0,0.00017533,2]
[363634996,1748794238996,-430.0,0.00017533,2]
[363634997,1748794239006,-430.0,0.00017533,2]
[363634998,1748794239016,-430.0,0.00017533,2]
[363634999,1748794239027,-430.0,0.00017533,2]
[363635000,1748794239037,-201.71,0.00017533,2]
[363635001,1748794239048,-430.0,0.00017533,2]
[363635002,1748794239058,-1226.51,0.00017533,2]
[363635003,1748794239068,-430.0,0.00017533,2]
[363635004,1748794239078,-430.0,0.00017533,2]
[363635005,1748794239088,-430.0,0.00017533,2]
[363635006,1748794239099,-1028.55,0.00017533,2]
[363635007,1748794239109,-430.0,0.00017533,2]
[363635008,1748794239119,-449.49,0.00017533,2]
[363635009,1748794239130,-430.0,0.00017533,2]
[363635010,1748794239140,-430.0,0.00017533,2]
[363635011,1748794239150,-430.0,0.00017534,2]
[363635012,1748794239160,-430.0,0.00017534,2]
[363635013,1748794239172,-430.0,0.00017534,2]
[363635014,1748794239183,-578.72,0.00017534,2]
[363635015,1748794239193,-711.65,0.00017534,2]
[363635016,1748794239203,-430.0,0.00017534,2]
[363635017,1748794239212,-430.0,0.00017534,2]
[363635018,1748794239223,-430.0,0.00017534,2]
[363635019,1748794239233,-430.0,0.00017534,2]
[363635020,1748794239244,-752.45,0.00017534,2]
[363635021,1748794239254,-430.0,0.00017534,2]
[363635022,1748794239263,-660.87,0.00017534,2]
[363635023,1748794239274,-1126.12,0.00017534,2]
[363635024,1748794239283,-430.0,0.00017534,2]
[363635025,1748794239294,-500.0,0.00017553,2]
[363635026,1748794239303,-500.0,0.00017553,2]
[363635027,1748794239313,-287.02125147,0.00017557,2]
[363635029,1748794239323,-500.0,0.00017655,2]
[363635030,1748794239333,-500.0,0.00017655,2]
[363635031,1748794239345,-258.73409755,0.00017655,2]
[363635033,1748794239355,-510.48768727,0.00017655,2]
[363635034,1748794239365,-500.0,0.00017655,2]
[363635035,1748794239374,-500.0,0.00017655,2]
[363635036,1748794239384,-500.0,0.0001766,2]
[363635038,1748794239394,-500.0,0.00017665,2]
[363635040,1748794239404,-500.0,0.00017665,2]
[363635042,1748794239415,-500.0,0.00017665,2]
[363635044,1748794239425,-500.0,0.00017695,2]
[363635045,1748794239436,-503.28249496,0.00017695,2]
[363635046,1748794239446,-500.0,0.00017743,2]
[363635047,1748794239456,-500.0,0.00017743,2]
[363635048,1748794239466,-565.00410927,0.00017743,2]
[363635049,1748794239475,-565.00410927,0.00017743,2]
[363635050,1748794239485,-565.00410927,0.00017743,2]
[363635051,1748794239495,-565.00410927,0.00017743,2]
[363635052,1748794239505,-565.00410927,0.00017743,2]
[363635053,1748794239515,-483.68712988,0.00017743,2]
[363635054,1748794239525,-565.00410927,0.00017743,2]
[363635055,1748794239535,-565.00410927,0.00017743,2]
[363635056,1748794239545,-565.00410927,0.00017743,2]
[363635057,1748794239554,-565.00410927,0.00017743,2]
[363635058,1748794239565,-565.00410927,0.00017743,2]
[363635059,1748794239574,-565.00410927,0.00017743,2]
[363635060,1748794239584,-344.58229376,0.00017744,2]
[363635061,1748794239594,-224.23945448,0.00017744,2]
[363635062,1748794239604,-500.0,0.00017744,2]
[363635063,1748794239613,-500.0,0.00017744,2]
[363635064,1748794239623,-153.38429643,0.00017744,2]
[363635065,1748794239634,-500.0,0.00017744,2]
[363635066,1748794239644,-500.0,0.00017744,2]
[363635067,1748794239654,-500.0,0.00017744,2]
[363635068,1748794239667,-500.0,0.00017744,2]
[363635069,1748794239677,-500.0,0.00017744,2]
[363635070,1748794239688,-182.15453462,0.00017807,2]
[363635071,1748794239698,-430.0,0.00017807,2]
[363635072,1748794239708,-430.0,0.00017807,2]
[363635073,1748794239719,-430.0,0.00017807,2]
[363635074,1748794239729,-430.0,0.00017807,2]
[363635075,1748794239739,-430.0,0.00017807,2]
[363635076,1748794239749,-430.0,0.00017807,2]
[363635077,1748794239759,-1226.51,0.00017807,2]
[363635078,1748794239770,-430.0,0.00017807,2]
[363635079,1748794239780,-430.0,0.00017807,2]
[363635080,1748794239790,-1028.55,0.00017807,2]
[363635081,1748794239800,-430.0,0.00017807,2]
[363635082,1748794239810,-449.49,0.00017807,2]
[363635083,1748794239820,-430.0,0.00017807,2]
[363635084,1748794239829,-430.0,0.00017807,2]
[363635086,1748794239839,-430.0,0.00017808,2]
[363635088,1748794239849,-430.0,0.00017808,2]
[363635090,1748794239859,-430.0,0.00017808,2]
[363635092,1748794239870,-578.72,0.00017808,2]
[363635093,1748794239879,-711.65,0.00017808,2]
[363635094,1748794239889,-280.2,0.00017808,2]
[363635095,1748794239902,-430.0,0.00017808,2]
[363635096,1748794239912,-430.0,0.00017808,2]
[363635097,1748794239926,-430.0,0.00017808,2]
[363635098,1748794239936,-752.45,0.00017808,2]
[363635099,1748794239947,-430.0,0.00017808,2]
[363635100,1748794239957,-660.87,0.00017808,2]
[363635101,1748794239971,-1126.12,0.00017808,2]
[363635102,1748794239981,-430.0,0.00017808,2]
[363635103,1748794239991,-226.469578,0.00017817,2]
[363635104,1748794240001,-594.32,0.00017881,3]
[363635105,1748794240011,-237.72,0.0001789,3]
[363635106,1748794240021,-500.0,0.00017891,2]
[363635107,1748794240031,-500.0,0.00017891,2]
[363635108,1748794240041,-500.87155734,0.00017891,2]
[363635109,1748794240051,-2543.13272765,0.000179,2]
[363635110,1748794240062,-475.44,0.00017954,3]
[363635111,1748794240072,-399.0,0.00017955,2]
[363635112,1748794240082,-500.0,0.00017964,2]
[363635113,1748794240091,-506.27078452,0.00017964,2]
[363635114,1748794240100,-500.0,0.00017964,2]
[363635115,1748794240110,-500.0,0.00017964,2]
[363635116,1748794240120,-500.0,0.00017964,2]
[363635117,1748794240130,-500.0,0.00017964,2]
[363635118,1748794240140,-500.0,0.00017964,2]
[363635119,1748794240150,-503.63052869,0.00017964,2]
[363635120,1748794240159,-500.37460371,0.00017964,2]
[363635121,1748794240173,-500.0,0.00017964,2]
[363635122,1748794240183,-950.88,0.00018071,3]
[363635123,1748794240193,-198.1,0.00018071,3]
[363635124,1748794240204,-430.0,0.00018081,2]
[363635125,1748794240215,-430.0,0.00018081,2]
[363635126,1748794240225,-430.0,0.00018081,2]
[363635127,1748794240237,-429.10000069,0.00018081,2]
[363635128,1748794240248,-458.89,0.00018081,2]
[363635129,1748794240259,-430.0,0.00018081,2]
[363635130,1748794240279,-1226.51,0.00018081,2]
[363635131,1748794240291,-430.0,0.00018081,2]
[363635132,1748794240300,-430.0,0.00018081,2]
[363635133,1748794240308,-1028.55,0.00018081,2]
[363635134,1748794240316,-430.0,0.00018081,2]
[363635135,1748794240323,-449.49,0.00018081,2]
[363635136,1748794240330,-430.0,0.00018081,2]
[363635137,1748794240339,-430.0,0.00018081,2]
[363635138,1748794240347,-430.0,0.00018082,2]
[363635139,1748794240354,-430.0,0.00018082,2]
[363635140,1748794240363,-430.0,0.00018082,2]
[363635141,1748794240370,-578.72,0.00018082,2]
[363635142,1748794240379,-711.65,0.00018082,2]
[363635143,1748794240386,-430.0,0.00018082,2]
[363635144,1748794240394,-430.0,0.00018082,2]
[363635145,1748794240401,-430.0,0.00018082,2]
[363635146,1748794240409,-752.45,0.00018082,2]
[363635147,1748794240421,-430.0,0.00018082,2]
[363635148,1748794240430,-660.87,0.00018082,2]
[363635149,1748794240439,-1126.12,0.00018082,2]
[363635150,1748794240449,-430.0,0.00018082,2]
[363635151,1748794240457,-247.39404564,0.00018106,2]
[363635152,1748794240466,-2543.1327274,0.00018107,2]
[363635153,1748794240474,-500.0,0.00018202,2]
[363635154,1748794240483,-500.96381212,0.00018202,2]
[363635155,1748794240491,-1000.0,0.00018213,2]
[363635156,1748794240501,-500.0,0.00018213,2]
[363635157,1748794240511,-500.0,0.00018243,2]
[363635158,1748794240522,-503.93213778,0.00018292,2]
[363635159,1748794240532,-500.0,0.00018292,2]
[363635160,1748794240542,-500.0,0.00018292,2]
[363635161,1748794240552,-500.0,0.00018292,2]
[363635162,1748794240562,-500.0,0.00018292,2]
[363635163,1748794240572,-2543.1327274,0.00018314,2]
[363635164,1748794240582,-528.00000069,0.00018355,2]
[363635165,1748794240592,-430.0,0.00018355,2]
[363635166,1748794240602,-430.0,0.00018355,2]
[363635167,1748794240613,-430.0,0.00018355,2]
[363635168,1748794240623,-1226.51,0.00018355,2]
[363635169,1748794240632,-430.0,0.00018355,2]
[363635170,1748794240642,-430.0,0.00018355,2]
[363635171,1748794240652,-1028.55,0.00018355,2]
[363635172,1748794240662,-430.0,0.00018355,2]
[363635173,1748794240675,-449.49,0.00018355,2]
[363635174,1748794240685,-430.0,0.00018355,2]
[363635175,1748794240695,-430.0,0.00018355,2]
[363635176,1748794240705,-492.08,0.00018356,2]
[363635177,1748794240715,-430.0,0.00018356,2]
[363635178,1748794240726,-430.0,0.00018356,2]
[363635179,1748794240736,-578.72,0.00018356,2]
[363635180,1748794240746,-711.65,0.00018356,2]
[363635181,1748794240756,-430.0,0.00018356,2]
[363635182,1748794240766,-430.0,0.00018356,2]
[363635183,1748794240776,-430.0,0.00018356,2]
[363635184,1748794240786,-752.45,0.00018356,2]
[363635185,1748794240795,-430.0,0.00018356,2]
[363635186,1748794240805,-660.87,0.00018356,2]
[363635187,1748794240815,-1126.12,0.00018356,2]
[363635188,1748794240825,-430.0,0.00018356,2]
[363635189,1748794240835,-160.0,0.0001842,2]
[363635190,1748794240846,-500.0,0.00018439,2]
[363635191,1748794240855,-160.0,0.00018448,2]
[363635192,1748794240865,-160.0,0.00018448,2]
[363635193,1748794240875,-160.0,0.00018448,2]
[363635194,1748794240885,-423.51412927,0.00018448,2]
[363635195,1748794240895,-229.3709046,0.00018448,2]
[363635196,1748794241060,-160.0,0.00018448,2]
[363635197,1748794241073,-160.0,0.0001845,2]
[363635198,1748794241082,-212.80060342,0.0001845,2]
[363635199,1748794241092,-842.5625,0.0001845,2]
[363635200,1748794241101,-1000.0,0.00018512,2]
[363635201,1748794241110,-1000.0,0.00018512,2]
[363635202,1748794241120,-500.0,0.00018512,2]
[363635203,1748794241130,-500.0,0.00018512,2]
[363635204,1748794241140,-711.69068759,0.00018512,2]
[363635205,1748794241150,-2543.1327274,0.00018521,2]
[363635206,1748794241160,-1533.3748357,0.00018529,2]
[363635207,1748794241174,-430.0,0.00018629,2]
[363635208,1748794241184,-430.0,0.00018629,2]
[363635209,1748794241194,-430.0,0.00018629,2]
[363635210,1748794241204,-1226.51,0.00018629,2]
[363635211,1748794241214,-430.0,0.00018629,2]
[363635212,1748794241225,-430.0,0.00018629,2]
[363635213,1748794241235,-1028.55,0.00018629,2]
[363635214,1748794241246,-430.0,0.00018629,2]
[363635215,1748794241256,-449.49,0.00018629,2]
[363635216,1748794241267,-430.0,0.00018629,2]
[363635217,1748794241277,-430.0,0.00018629,2]
[363635218,1748794241287,-430.0,0.0001863,2]
[363635219,1748794241297,-430.0,0.0001863,2]
[363635220,1748794241307,-578.72,0.0001863,2]
[363635221,1748794241317,-711.65,0.0001863,2]
[363635222,1748794241327,-430.0,0.0001863,2]
[363635223,1748794241337,-430.0,0.0001863,2]
[363635224,1748794241348,-430.0,0.0001863,2]
[363635225,1748794241357,-752.45,0.0001863,2]
[363635226,1748794241367,-430.0,0.0001863,2]
[363635227,1748794241377,-660.87,0.0001863,2]
[363635228,1748794241387,-1126.12,0.0001863,2]
[363635229,1748794241396,-430.0,0.0001863,2]
[363635230,1748794241406,-2543.1327274,0.00018728,2]
[363635231,1748794241419,-598.06223443,0.00018761,2]
[363635232,1748794241429,-3000.0,0.000188,2]
[363635233,1748794241439,-3000.0,0.0001881,2]
[363635234,1748794241448,-3000.0,0.0001882,2]
[363635235,1748794241458,-3000.0,0.0001883,2]
[363635236,1748794241467,-3000.0,0.0001884,2]
[363635237,1748794241477,-4483.080538,0.0001885,2]
[363635238,1748794241487,-430.0,0.00018903,2]
[363635239,1748794241496,-430.0,0.00018903,2]
[363635240,1748794241506,-430.0,0.00018903,2]
[363635241,1748794241516,-1226.51,0.00018903,2]
[363635242,1748794241526,-430.0,0.00018903,2]
[363635243,1748794241535,-430.0,0.00018903,2]
[363635244,1748794241545,-1028.55,0.00018903,2]
[363635245,1748794241555,-430.0,0.00018903,2]
[363635246,1748794241565,-449.49,0.00018903,2]
[363635247,1748794241574,-501.43384318,0.00018903,2]